[Event "ONJK 2023 U25"]
[Site "Dieren, Netherlands"]
[Date "2023.08.07"]
[Round "4.1"]
[White "Faybish, Benjamin"]
[Black "Baselmans, Luuk"]
[Result "1/2-1/2"]
[TimeControl "90min + 30sec/zet"]
[WhiteElo "2064"]
[BlackElo "2338"]

1. d4 {[%clk 01:30:58]} Nf6 {[%clk 01:30:51]} {[%emt 00:00:10]} 2. c4 {[%clk
01:31:20]} {[%emt 00:00:08]} e6 {[%clk 01:31:09]} {[%emt 00:00:12]} 3. Nf3
{[%clk 01:31:40]} {[%emt 00:00:10]} Bb4+ {[%clk 01:29:01]} {[%emt 00:02:39]} 4.
Bd2 {[%clk 01:31:56]} {[%emt 00:00:13]} a5 {[%clk 01:28:51]} {[%emt 00:00:40]}
5. a3 {[%clk 01:32:04]} {[%emt 00:00:22]} Bxd2+ {[%clk 01:28:49]} {[%emt
00:00:32]} 6. Qxd2 {[%clk 01:32:15]} {[%emt 00:00:18]} O-O {[%clk 01:27:47]}
{[%emt 00:01:31]} 7. Nc3 {[%clk 01:31:32]} {[%emt 00:01:15]} d6 {[%clk
01:27:26]} {[%emt 00:00:51]} 8. e4 {[%clk 01:30:32]} {[%emt 00:01:29]} Nc6
{[%clk 01:27:36]} {[%emt 00:00:21]} 9. Bd3 {[%clk 01:26:05]} {[%emt 00:04:56]}
e5 {[%clk 01:27:51]} {[%emt 00:00:15]} 10. d5 {[%clk 01:26:26]} {[%emt
00:00:09]} Ne7 {[%clk 01:21:26]} {[%emt 00:06:56]} 11. O-O {[%clk 01:26:15]}
{[%emt 00:00:41]} a4 {[%clk 01:20:26]} {[%emt 00:01:30]} 12. Bc2 {[%clk
01:00:34]} {[%emt 00:26:11]} Ng6 {[%clk 01:15:09]} {[%emt 00:05:47]} 13. Ne1
{[%clk 00:49:02]} {[%emt 00:12:02]} b6 {[%clk 01:03:25]} {[%emt 00:12:13]} 14.
Nd3 {[%clk 00:46:23]} {[%emt 00:03:10]} Bd7 {[%clk 00:59:08]} {[%emt 00:04:47]}
15. f4 {[%clk 00:37:36]} {[%emt 00:09:17]} exf4 {[%clk 00:59:18]} {[%emt
00:00:20]} 16. Nxf4 {[%clk 00:38:00]} {[%emt 00:00:06]} Ng4 {[%clk 00:55:04]}
{[%emt 00:04:44]} 17. Nxg6 {[%clk 00:33:38]} {[%emt 00:04:52]} hxg6 {[%clk
00:55:14]} {[%emt 00:00:20]} 18. Rae1 {[%clk 00:32:07]} {[%emt 00:02:01]} Qh4
{[%clk 00:53:54]} {[%emt 00:01:49]} 19. g3 {[%clk 00:30:47]} {[%emt 00:01:50]}
Qe7 {[%clk 00:53:11]} {[%emt 00:01:13]} 20. Qd4 {[%clk 00:27:37]} {[%emt
00:03:41]} Ne5 {[%clk 00:51:04]} {[%emt 00:02:38]} 21. Nb5 {[%clk 00:26:34]}
{[%emt 00:01:33]} Ra5 {[%clk 00:46:56]} {[%emt 00:04:37]} 22. Bd3 {[%clk
00:26:40]} {[%emt 00:00:24]} Nxc4 {[%clk 00:44:11]} {[%emt 00:03:14]} 23. Nxc7
{[%clk 00:21:58]} {[%emt 00:05:12]} Bh3 {[%clk 00:34:59]} {[%emt 00:09:43]} 24.
Rf2 {[%clk 00:21:19]} {[%emt 00:01:09]} Ne5 {[%clk 00:33:11]} {[%emt 00:02:18]}
25. Nb5 {[%clk 00:21:05]} {[%emt 00:00:44]} Rc8 {[%clk 00:33:10]} {[%emt
00:00:31]} 26. Nc3 {[%clk 00:20:04]} {[%emt 00:01:31]} Rac5 {[%clk 00:32:45]}
{[%emt 00:00:56]} 27. Bf1 {[%clk 00:17:20]} {[%emt 00:03:14]} Bxf1 {[%clk
00:31:40]} {[%emt 00:01:34]} 28. Rexf1 {[%clk 00:17:20]} {[%emt 00:00:30]} b5
{[%clk 00:32:01]} {[%emt 00:00:09]} 29. Kg2 {[%clk 00:16:46]} {[%emt 00:01:03]}
Qd7 {[%clk 00:28:17]} {[%emt 00:04:15]} 30. h3 {[%clk 00:15:18]} {[%emt
00:01:59]} Rb8 {[%clk 00:27:16]} {[%emt 00:01:30]} 31. Na2 {[%clk 00:14:10]}
{[%emt 00:01:38]} Rc4 {[%clk 00:26:55]} {[%emt 00:00:51]} 32. Qe3 {[%clk
00:14:13]} {[%emt 00:00:27]} f6 {[%clk 00:26:32]} {[%emt 00:00:53]} 33. Nb4
{[%clk 00:13:49]} {[%emt 00:00:54]} Re8 {[%clk 00:26:35]} {[%emt 00:00:27]} 34.
Rc2 {[%clk 00:14:02]} {[%emt 00:00:17]} Rxc2+ {[%clk 00:26:21]} {[%emt
00:00:44]} 35. Nxc2 {[%clk 00:14:20]} {[%emt 00:00:11]} Nc4 {[%clk 00:26:11]}
{[%emt 00:00:41]} 36. Qd4 {[%clk 00:14:10]} {[%emt 00:00:40]} Qe7 {[%clk
00:25:25]} {[%emt 00:01:16]} 37. Re1 {[%clk 00:09:44]} {[%emt 00:04:57]} g5
{[%clk 00:22:40]} {[%emt 00:03:14]} 38. Qc3 {[%clk 00:08:36]} {[%emt 00:01:38]}
Rc8 {[%clk 00:16:41]} {[%emt 00:06:29]} 39. Nd4 {[%clk 00:07:35]} {[%emt
00:01:32]} Qb7 {[%clk 00:14:52]} {[%emt 00:02:18]} 40. Qb4 {[%clk 00:05:56]}
{[%emt 00:02:09]} Qb6 {[%clk 00:13:58]} {[%emt 00:01:23]} 41. Qc3 {[%clk
00:03:31]} {[%emt 00:02:56]} Rb8 {[%clk 00:13:38]} {[%emt 00:00:50]} 42. Nc6
{[%clk 00:03:50]} {[%emt 00:00:12]} Re8 {[%clk 00:13:58]} {[%emt 00:00:09]} 43.
Nd4 {[%clk 00:03:52]} {[%emt 00:00:28]} g4 {[%clk 00:09:35]} {[%emt 00:04:54]}
44. hxg4 {[%clk 00:03:45]} {[%emt 00:00:36]} Ne5 {[%clk 00:09:58]} {[%emt
00:00:08]} 45. g5 {[%clk 00:03:31]} {[%emt 00:00:44]} fxg5 {[%clk 00:10:05]}
{[%emt 00:00:22]} 46. Ne6 {[%clk 00:03:34]} {[%emt 00:00:27]} g4 {[%clk
00:10:09]} {[%emt 00:00:26]} 47. Rc1 {[%clk 00:03:33]} {[%emt 00:00:31]} Rb8
{[%clk 00:08:14]} {[%emt 00:02:26]} 48. Qc7 {[%clk 00:02:52]} {[%emt 00:01:10]}
Qxc7 {[%clk 00:08:21]} {[%emt 00:00:23]} 49. Rxc7 {[%clk 00:03:18]} {[%emt
00:00:04]} Nf7 {[%clk 00:07:16]} {[%emt 00:01:35]} 50. Nd4 {[%clk 00:02:41]}
{[%emt 00:01:08]} b4 {[%clk 00:07:18]} {[%emt 00:00:28]} 51. Ra7 {[%clk
00:01:51]} {[%emt 00:01:19]} bxa3 {[%clk 00:06:46]} {[%emt 00:01:02]} 52. bxa3
{[%clk 00:02:17]} {[%emt 00:00:04]} Rb2+ {[%clk 00:06:30]} {[%emt 00:00:46]} 53.
Kf1 {[%clk 00:02:41]} {[%emt 00:00:06]} Ng5 {[%clk 00:05:06]} {[%emt 00:01:54]}
54. Nf5 {[%clk 00:02:26]} {[%emt 00:00:46]} Nxe4 {[%clk 00:03:00]} {[%emt
00:02:36]} 55. Rxg7+ {[%clk 00:02:50]} {[%emt 00:00:05]} Kf8 {[%clk 00:03:22]}
{[%emt 00:00:08]} 56. Rxg4 {[%clk 00:02:41]} {[%emt 00:00:40]} Nd2+ {[%clk
00:03:00]} {[%emt 00:00:51]} 57. Kg2 {[%clk 00:02:07]} {[%emt 00:01:04]} Ne4+
{[%clk 00:02:39]} {[%emt 00:00:51]} 58. Kf3 {[%clk 00:02:08]} {[%emt 00:00:29]}
Nd2+ {[%clk 00:02:46]} {[%emt 00:00:23]} 59. Kf4 {[%clk 00:02:11]} {[%emt
00:00:26]} Rb3 {[%clk 00:03:07]} {[%emt 00:00:10]} 60. Nxd6 {[%clk 00:02:27]}
{[%emt 00:00:14]} Rxa3 {[%clk 00:03:29]} {[%emt 00:00:08]} 61. Ke5 {[%clk
00:02:20]} {[%emt 00:00:37]} Re3+ {[%clk 00:03:19]} {[%emt 00:00:40]} 62. Kd4
{[%clk 00:01:54]} {[%emt 00:00:50]} Rb3 {[%clk 00:01:49]} {[%emt 00:02:06]} 63.
Rf4+ {[%clk 00:02:16]} {[%emt 00:00:08]} Ke7 {[%clk 00:02:11]} {[%emt
00:00:07]} 64. Nf5+ {[%clk 00:02:20]} {[%emt 00:00:26]} Kd7 {[%clk 00:02:31]}
{[%emt 00:00:11]} 65. Rf2 {[%clk 00:02:27]} {[%emt 00:00:23]} Nf3+ {[%clk
00:02:36]} {[%emt 00:00:25]} 66. Kc4 {[%clk 00:02:12]} {[%emt 00:00:45]} Ne5+
{[%clk 00:02:50]} {[%emt 00:00:16]} 67. Kd4 {[%clk 00:02:08]} {[%emt 00:00:34]}
Nf3+ {[%clk 00:02:33]} {[%emt 00:00:47]} 68. Ke4 {[%clk 00:01:55]} {[%emt
00:00:42]} Ng5+ {[%clk 00:02:15]} {[%emt 00:00:48]} 69. Kd4 {[%clk 00:02:00]}
{[%emt 00:00:24]} 1/2-1/2

[Event "ONJK 2023 U25"]
[Site "Dieren, Netherlands"]
[Date "2023.08.07"]
[Round "4.2"]
[White "Johannesson, Björn"]
[Black "Guillaumond, Matthieu"]
[Result "0-1"]
[TimeControl "90min + 30sec/zet"]
[WhiteElo "1200"]
[BlackElo "1856"]

1. e4 {[%clk 01:30:59]} c5 {[%clk 01:30:55]} {[%emt 00:00:05]} 2. c3 {[%clk
01:31:26]} {[%emt 00:00:03]} Nf6 {[%clk 01:31:20]} {[%emt 00:00:05]} 3. e5
{[%clk 01:31:52]} {[%emt 00:00:04]} Nd5 {[%clk 01:31:45]} {[%emt 00:00:05]} 4.
d4 {[%clk 01:32:18]} {[%emt 00:00:04]} cxd4 {[%clk 01:32:08]} {[%emt 00:00:07]}
5. cxd4 {[%clk 01:32:44]} {[%emt 00:00:03]} d6 {[%clk 01:32:23]} {[%emt
00:00:15]} 6. Nf3 {[%clk 01:32:33]} {[%emt 00:00:41]} Nc6 {[%clk 01:32:43]}
{[%emt 00:00:11]} 7. Bc4 {[%clk 01:31:48]} {[%emt 00:01:15]} Nb6 {[%clk
01:32:23]} {[%emt 00:00:50]} 8. Bb3 {[%clk 01:31:17]} {[%emt 00:01:00]} dxe5
{[%clk 01:31:49]} {[%emt 00:01:05]} 9. dxe5 {[%clk 01:29:36]} {[%emt 00:02:11]}
Qxd1+ {[%clk 01:31:41]} {[%emt 00:00:36]} 10. Bxd1 {[%clk 01:29:58]} {[%emt
00:00:09]} Bf5 {[%clk 01:31:21]} {[%emt 00:00:50]} 11. a3 {[%clk 01:28:15]}
{[%emt 00:02:14]} Nc4 {[%clk 01:27:38]} {[%emt 00:04:01]} 12. Ba4 {[%clk
01:26:43]} {[%emt 00:02:14]} Bd7 {[%clk 01:27:36]} {[%emt 00:00:30]} 13. O-O
{[%clk 01:24:50]} {[%emt 00:02:24]} N4xe5 {[%clk 01:23:49]} {[%emt 00:04:17]}
14. Nxe5 {[%clk 01:23:13]} {[%emt 00:02:07]} Nxe5 {[%clk 01:24:12]} {[%emt
00:00:08]} 15. Bxd7+ {[%clk 01:23:03]} {[%emt 00:00:40]} Nxd7 {[%clk 01:24:29]}
{[%emt 00:00:13]} 16. Nc3 {[%clk 01:23:17]} {[%emt 00:00:15]} Rc8 {[%clk
01:18:27]} {[%emt 00:06:32]} 17. Bf4 {[%clk 01:20:08]} {[%emt 00:03:40]} a6
{[%clk 01:14:06]} {[%emt 00:04:50]} 18. Rad1 {[%clk 01:16:51]} {[%emt
00:03:47]} e6 {[%clk 01:12:50]} {[%emt 00:01:47]} 19. Ne4 {[%clk 01:15:46]}
{[%emt 00:01:35]} Nf6 {[%clk 01:11:47]} {[%emt 00:01:31]} 20. Nd6+ {[%clk
01:12:59]} {[%emt 00:03:20]} Bxd6 {[%clk 01:12:07]} {[%emt 00:00:09]} 21. Bxd6
{[%clk 01:13:16]} {[%emt 00:00:12]} Nd5 {[%clk 01:12:22]} {[%emt 00:00:13]} 22.
Rfe1 {[%clk 01:12:26]} {[%emt 00:01:22]} Kd7 {[%clk 01:12:40]} {[%emt
00:00:12]} 23. Bg3 {[%clk 01:09:03]} {[%emt 00:03:53]} Rc2 {[%clk 01:08:11]}
{[%emt 00:04:59]} 24. b4 {[%clk 01:06:33]} {[%emt 00:03:00]} Rhc8 {[%clk
01:05:12]} {[%emt 00:03:29]} 25. Re3 {[%clk 00:58:26]} {[%emt 00:08:38]} Rd2
{[%clk 01:03:03]} {[%emt 00:02:34]} 26. Rd3 {[%clk 00:58:23]} {[%emt 00:00:38]}
Rxd3 {[%clk 01:03:20]} {[%emt 00:00:12]} 0-1

[Event "ONJK 2023 U25"]
[Site "Dieren, Netherlands"]
[Date "2023.08.07"]
[Round "4.3"]
[White "Van Randtwijk, Mick"]
[Black "Boudry, William"]
[Result "1/2-1/2"]
[TimeControl "90min + 30sec/zet"]
[WhiteElo "2035"]
[BlackElo "2084"]

1. e4 {[%clk 01:30:55]} {[%emt 00:00:04]} e5 {[%clk 01:30:43]} {[%emt
00:00:17]} 2. Nf3 {[%clk 01:31:16]} {[%emt 00:00:10]} Nc6 {[%clk 01:31:08]}
{[%emt 00:00:05]} 3. Bb5 {[%clk 01:31:37]} {[%emt 00:00:08]} Nge7 {[%clk
01:30:31]} {[%emt 00:01:07]} 4. d4 {[%clk 01:29:27]} {[%emt 00:02:40]} exd4
{[%clk 01:30:12]} {[%emt 00:00:49]} 5. Nxd4 {[%clk 01:29:53]} {[%emt 00:00:04]}
g6 {[%clk 01:29:40]} {[%emt 00:01:02]} 6. Nc3 {[%clk 01:28:50]} {[%emt
00:01:34]} Bg7 {[%clk 01:30:02]} {[%emt 00:00:08]} 7. Be3 {[%clk 01:29:08]}
{[%emt 00:00:11]} O-O {[%clk 01:30:06]} {[%emt 00:00:26]} 8. O-O {[%clk
01:28:00]} {[%emt 00:01:39]} d5 {[%clk 01:26:02]} {[%emt 00:04:34]} 9. exd5
{[%clk 01:06:12]} {[%emt 00:22:18]} Nxd5 {[%clk 01:25:10]} {[%emt 00:01:22]} 10.
Nxd5 {[%clk 01:06:19]} {[%emt 00:00:22]} Nxd4 {[%clk 01:22:09]} {[%emt
00:03:31]} 11. Bxd4 {[%clk 01:05:59]} {[%emt 00:00:50]} Qxd5 {[%clk 01:22:16]}
{[%emt 00:00:22]} 12. Bxg7 {[%clk 01:06:09]} {[%emt 00:00:21]} Qxd1 {[%clk
01:22:38]} {[%emt 00:00:08]} 13. Raxd1 {[%clk 01:06:12]} {[%emt 00:00:27]} Kxg7
{[%clk 01:23:01]} {[%emt 00:00:08]} 14. Bd7 {[%clk 01:03:51]} {[%emt 00:02:51]}
Rd8 {[%clk 01:22:24]} {[%emt 00:01:06]} 15. Bxc8 {[%clk 01:03:16]} {[%emt
00:01:05]} Raxc8 {[%clk 01:22:47]} {[%emt 00:00:07]} 16. Rfe1 {[%clk 01:03:18]}
{[%emt 00:00:28]} Kf6 {[%clk 01:23:11]} {[%emt 00:00:07]} 17. f4 {[%clk
01:01:41]} {[%emt 00:02:07]} Re8 {[%clk 01:01:18]} {[%emt 00:22:22]} 1/2-1/2

[Event "ONJK 2023 U25"]
[Site "Dieren, Netherlands"]
[Date "2023.08.08"]
[Round "5.1"]
[White "Baselmans, Luuk"]
[Black "Guillaumond, Matthieu"]
[Result "1-0"]
[TimeControl "90min + 30sec/zet"]
[WhiteElo "2338"]
[BlackElo "1856"]

1. e4 {[%clk 01:30:57]} {[%emt 00:00:02]} c5 {[%clk 01:30:52]} {[%emt
00:00:09]} 2. Nf3 {[%clk 01:31:21]} {[%emt 00:00:06]} Nc6 {[%clk 01:31:16]}
{[%emt 00:00:07]} 3. Bb5 {[%clk 01:31:42]} {[%emt 00:00:08]} g6 {[%clk
01:31:33]} {[%emt 00:00:13]} 4. O-O {[%clk 01:31:42]} {[%emt 00:00:30]} Bg7
{[%clk 01:31:58]} {[%emt 00:00:05]} 5. Bxc6 {[%clk 01:31:38]} {[%emt 00:00:34]}
dxc6 {[%clk 01:32:17]} {[%emt 00:00:11]} 6. d3 {[%clk 01:31:54]} {[%emt
00:00:14]} e5 {[%clk 01:31:37]} {[%emt 00:01:10]} 7. h3 {[%clk 01:29:45]}
{[%emt 00:02:38]} Qe7 {[%clk 01:29:33]} {[%emt 00:02:34]} 8. Nc3 {[%clk
01:25:46]} {[%emt 00:04:30]} Nf6 {[%clk 01:29:07]} {[%emt 00:00:56]} 9. Be3
{[%clk 01:24:43]} {[%emt 00:01:32]} O-O {[%clk 01:27:52]} {[%emt 00:01:44]} 10.
a4 {[%clk 01:24:36]} {[%emt 00:00:39]} a5 {[%clk 01:25:59]} {[%emt 00:02:20]}
11. Nd2 {[%clk 01:22:42]} {[%emt 00:02:26]} Be6 {[%clk 01:24:19]} {[%emt
00:02:11]} 12. Nc4 {[%clk 01:18:20]} {[%emt 00:04:52]} Nd7 {[%clk 01:24:22]}
{[%emt 00:00:27]} 13. Qc1 {[%clk 01:16:32]} {[%emt 00:02:17]} Bxc4 {[%clk
01:21:22]} {[%emt 00:03:31]} 14. dxc4 {[%clk 01:17:00]} {[%emt 00:00:02]} Qe6
{[%clk 01:21:18]} {[%emt 00:00:34]} 15. b3 {[%clk 01:15:50]} {[%emt 00:01:40]}
f5 {[%clk 01:21:07]} {[%emt 00:00:41]} 16. Bh6 {[%clk 01:10:48]} {[%emt
00:05:32]} f4 {[%clk 01:20:18]} {[%emt 00:01:18]} 17. Bxg7 {[%clk 01:11:11]}
{[%emt 00:00:08]} Kxg7 {[%clk 01:20:37]} {[%emt 00:00:10]} 18. Rd1 {[%clk
01:06:36]} {[%emt 00:05:05]} Rad8 {[%clk 01:17:16]} {[%emt 00:03:52]} 19. Qd2
{[%clk 01:02:20]} {[%emt 00:04:46]} Rf6 {[%clk 00:54:58]} {[%emt 00:22:47]} 20.
f3 {[%clk 00:57:43]} {[%emt 00:05:07]} g5 {[%clk 00:54:13]} {[%emt 00:01:15]}
21. Qf2 {[%clk 00:57:33]} {[%emt 00:00:41]} h5 {[%clk 00:53:03]} {[%emt
00:01:40]} 22. Rd3 {[%clk 00:57:37]} {[%emt 00:00:26]} Kf7 {[%clk 00:41:40]}
{[%emt 00:11:53]} 23. Rad1 {[%clk 00:57:02]} {[%emt 00:01:05]} Ke7 {[%clk
00:40:57]} {[%emt 00:01:14]} 24. Qd2 {[%clk 00:54:43]} {[%emt 00:02:48]} b6
{[%clk 00:40:36]} {[%emt 00:00:50]} 25. Ne2 {[%clk 00:52:34]} {[%emt 00:02:40]}
Rg6 {[%clk 00:38:06]} {[%emt 00:02:59]} 26. Kf1 {[%clk 00:51:16]} {[%emt
00:01:48]} Rf6 {[%clk 00:36:33]} {[%emt 00:02:04]} 27. c3 {[%clk 00:50:30]}
{[%emt 00:01:16]} Rh6 {[%clk 00:33:03]} {[%emt 00:04:00]} 28. Ke1 {[%clk
00:48:51]} {[%emt 00:02:09]} g4 {[%clk 00:31:42]} {[%emt 00:01:51]} 29. Ng1
{[%clk 00:48:13]} {[%emt 00:01:07]} Rg6 {[%clk 00:27:51]} {[%emt 00:04:22]} 30.
Qf2 {[%clk 00:46:45]} {[%emt 00:01:58]} g3 {[%clk 00:22:38]} {[%emt 00:05:44]}
31. Qd2 {[%clk 00:47:07]} {[%emt 00:00:07]} h4 {[%clk 00:22:58]} {[%emt
00:00:11]} 32. Ne2 {[%clk 00:47:13]} {[%emt 00:00:23]} Rf6 {[%clk 00:22:56]}
{[%emt 00:00:32]} 33. Kf1 {[%clk 00:47:14]} {[%emt 00:00:29]} Rg6 {[%clk
00:23:09]} {[%emt 00:00:17]} 34. Kg1 {[%clk 00:47:36]} {[%emt 00:00:08]} Rf6
{[%clk 00:23:24]} {[%emt 00:00:15]} 35. Kh1 {[%clk 00:47:35]} {[%emt 00:00:31]}
Rg6 {[%clk 00:22:53]} {[%emt 00:01:02]} 36. b4 {[%clk 00:47:14]} {[%emt
00:00:51]} cxb4 {[%clk 00:20:14]} {[%emt 00:03:09]} 37. cxb4 {[%clk 00:47:32]}
{[%emt 00:00:11]} axb4 {[%clk 00:19:46]} {[%emt 00:00:59]} 38. Qxb4+ {[%clk
00:47:53]} {[%emt 00:00:08]} c5 {[%clk 00:20:08]} {[%emt 00:00:08]} 39. Qd2
{[%clk 00:47:53]} {[%emt 00:00:29]} Qc6 {[%clk 00:17:45]} {[%emt 00:02:53]} 40.
Nc3 {[%clk 00:48:05]} {[%emt 00:00:18]} Ke8 {[%clk 00:12:45]} {[%emt 00:05:31]}
41. Nb5 {[%clk 00:46:14]} {[%emt 00:02:22]} Ke7 {[%clk 00:12:07]} {[%emt
00:01:08]} 42. Rd5 {[%clk 00:45:06]} {[%emt 00:01:37]} Re6 {[%clk 00:12:27]}
{[%emt 00:00:11]} 43. Nd6 {[%clk 00:45:20]} {[%emt 00:00:15]} 1-0

[Event "ONJK 2023 U25"]
[Site "Dieren, Netherlands"]
[Date "2023.08.08"]
[Round "5.2"]
[White "Van Randtwijk, Mick"]
[Black "Faybish, Benjamin"]
[Result "1-0"]
[TimeControl "90min + 30sec/zet"]
[WhiteElo "2035"]
[BlackElo "2064"]

1. e4 {[%clk 01:30:57]} {[%emt 00:00:02]} c5 {[%clk 01:29:50]} {[%emt
00:01:10]} 2. Nf3 {[%clk 01:31:10]} {[%emt 00:00:17]} Nc6 {[%clk 01:30:07]}
{[%emt 00:00:13]} 3. d4 {[%clk 01:31:01]} {[%emt 00:00:38]} cxd4 {[%clk
01:30:31]} {[%emt 00:00:07]} 4. Nxd4 {[%clk 01:31:26]} {[%emt 00:00:05]} g6
{[%clk 01:30:55]} {[%emt 00:00:06]} 5. Nc3 {[%clk 01:31:44]} {[%emt 00:00:12]}
Bg7 {[%clk 01:31:16]} {[%emt 00:00:09]} 6. Be3 {[%clk 01:32:07]} {[%emt
00:00:07]} Nf6 {[%clk 01:31:39]} {[%emt 00:00:07]} 7. Bc4 {[%clk 01:32:14]}
{[%emt 00:00:23]} O-O {[%clk 01:31:42]} {[%emt 00:00:27]} 8. Bb3 {[%clk
01:31:27]} {[%emt 00:01:17]} a5 {[%clk 01:31:38]} {[%emt 00:00:35]} 9. O-O
{[%clk 01:26:17]} {[%emt 00:05:39]} a4 {[%clk 01:28:11]} {[%emt 00:03:58]} 10.
Nxa4 {[%clk 01:26:00]} {[%emt 00:00:47]} Nxe4 {[%clk 01:28:33]} {[%emt
00:00:07]} 11. Nb5 {[%clk 01:26:15]} {[%emt 00:00:15]} Ra6 {[%clk 01:28:42]}
{[%emt 00:00:22]} 12. c4 {[%clk 01:22:01]} {[%emt 00:04:43]} d6 {[%clk
01:27:36]} {[%emt 00:01:36]} 13. Qe2 {[%emt 00:14:01]} Nf6 {[%clk 01:18:12]} 14.
Rfd1 {[%clk 01:13:03]} {[%emt 00:05:51]} Bg4 {[%clk 01:15:10]} {[%emt
00:03:32]} 15. f3 {[%clk 01:13:26]} {[%emt 00:00:07]} Be6 {[%clk 01:15:19]}
{[%emt 00:00:21]} 16. Nc5 {[%clk 01:09:15]} {[%emt 00:04:41]} Ra8 {[%clk
01:14:44]} {[%emt 00:01:06]} 17. Nxe6 {[%clk 01:08:39]} {[%emt 00:01:05]} fxe6
{[%clk 01:15:07]} {[%emt 00:00:06]} 18. Bf2 {[%clk 01:03:44]} {[%emt 00:05:26]}
Qd7 {[%clk 01:10:55]} {[%emt 00:04:43]} 19. Re1 {[%clk 01:03:05]} {[%emt
00:01:08]} e5 {[%clk 01:10:10]} {[%emt 00:01:15]} 20. a3 {[%clk 01:01:19]}
{[%emt 00:02:16]} Rad8 {[%clk 01:02:05]} {[%emt 00:08:36]} 21. Rad1 {[%clk
01:00:45]} {[%emt 00:01:03]} Kh8 {[%clk 01:01:22]} {[%emt 00:01:13]} 22. Bb6
{[%clk 00:54:10]} {[%emt 00:07:05]} Rc8 {[%emt 00:00:50]} 23. Ba2 {[%clk
00:48:48]} {[%emt 00:05:46]} Qf5 {[%clk 00:49:22]} {[%emt 00:12:16]} 24. b4
{[%clk 00:44:02]} {[%emt 00:05:17]} Nh5 {[%clk 00:29:52]} {[%emt 00:19:59]} 25.
g4 {[%clk 00:33:49]} {[%emt 00:10:43]} Qg5 {[%clk 00:30:15]} {[%emt 00:00:07]}
26. h4 {[%clk 00:34:16]} {[%emt 00:00:03]} Qxh4 {[%clk 00:30:39]} {[%emt
00:00:06]} 27. gxh5 {[%clk 00:34:42]} {[%emt 00:00:04]} Qxh5 {[%clk 00:19:57]}
{[%emt 00:11:12]} 28. Rf1 {[%clk 00:32:16]} {[%emt 00:02:56]} Rf4 {[%clk
00:14:55]} {[%emt 00:05:31]} 29. Rf2 {[%clk 00:26:56]} {[%emt 00:05:50]} e4
{[%clk 00:11:17]} {[%emt 00:04:08]} 30. Rh2 {[%clk 00:22:04]} {[%emt 00:05:23]}
exf3 {[%clk 00:09:44]} {[%emt 00:02:02]} 31. Qf2 {[%clk 00:22:27]} {[%emt
00:00:07]} Qg5+ {[%clk 00:09:31]} {[%emt 00:00:43]} 32. Kh1 {[%clk 00:22:34]}
{[%emt 00:00:23]} Ne5 {[%clk 00:09:21]} {[%emt 00:00:40]} 33. Be3 {[%clk
00:16:08]} {[%emt 00:06:56]} Ng4 {[%clk 00:09:41]} {[%emt 00:00:10]} 34. Qg3
{[%clk 00:16:24]} {[%emt 00:00:14]} Be5 {[%clk 00:07:09]} {[%emt 00:03:03]} 35.
Rf1 {[%clk 00:07:36]} {[%emt 00:09:17]} Rcf8 {[%clk 00:04:42]} {[%emt
00:02:56]} 36. Rh3 {[%clk 00:05:58]} {[%emt 00:02:08]} Kg7 {[%clk 00:00:48]}
{[%emt 00:04:25]} 37. Nc7 {[%clk 00:05:05]} {[%emt 00:01:23]} Qf5 {[%clk
00:00:34]} {[%emt 00:00:44]} 38. Bxf4 {[%clk 00:04:13]} {[%emt 00:01:22]} Bxf4
{[%clk 00:00:57]} {[%emt 00:00:08]} 39. Qxf3 {[%clk 00:04:36]} {[%emt
00:00:06]} Qd7 {[%clk 00:00:50]} {[%emt 00:00:37]} 40. Nd5 {[%clk 00:04:25]}
{[%emt 00:00:41]} e5 {[%clk 00:01:11]} {[%emt 00:00:09]} 41. Rh4 {[%clk
00:03:44]} {[%emt 00:01:11]} h5 {[%clk 00:01:11]} {[%emt 00:00:29]} 42. Bb1
{[%clk 00:03:49]} {[%emt 00:00:25]} Qd8 {[%clk 00:01:26]} {[%emt 00:00:16]} 43.
Rh3 {[%clk 00:04:04]} {[%emt 00:00:15]} Qd7 {[%clk 00:01:39]} {[%emt 00:00:17]}
44. Kg2 {[%clk 00:03:23]} {[%emt 00:01:12]} Kh7 {[%clk 00:01:41]} {[%emt
00:00:27]} 45. Qe4 {[%clk 00:02:59]} {[%emt 00:00:53]} Qf7 {[%clk 00:01:21]}
{[%emt 00:00:50]} 46. Nxf4 {[%clk 00:02:28]} {[%emt 00:01:02]} exf4 {[%clk
00:01:49]} {[%emt 00:00:01]} 47. Rxf4 {[%clk 00:02:51]} {[%emt 00:00:08]} Nf6
{[%clk 00:01:23]} {[%emt 00:00:56]} 48. Rhf3 {[%clk 00:02:26]} {[%emt
00:00:54]} Qg7 {[%clk 00:00:43]} {[%emt 00:01:10]} 49. Qe6 {[%clk 00:02:25]}
{[%emt 00:00:32]} Ng4 {[%clk 00:00:47]} {[%emt 00:00:26]} 50. Qxg6+ {[%clk
00:02:22]} {[%emt 00:00:33]} 1-0